Cogmind - Beta 13 @@@ ROGUE MODE // 2024.04.04 @ 19:32:50 Player: SPRING Result: Destroyed by 3G-FVK(R) with Subdweller Machine Gun Performance ------------- Evolutions (0) 0 Regions Visited (3) 600 Robots Destroyed (48) 240 Value Destroyed (878) 878 Prototype IDs (3) 60 Alien Tech Used (0) 0 Bonus (0) 0 TOTAL SCORE: 1778 Bonus ------- None Cogmind --------- Core Integrity 0/250 Matter 234/300 Energy 125/125 System Corruption 0% Temperature Cool (0) Movement Treading (320) Ox2 Location -10/Subcaves Parts ------- > --- POWER (1) -------- Light Ion Engine > --- PROPULSION (2) --- Light Treads > --- UTILITY (2) ------ High-capacity Storage Unit Improved Terrain Scanner > --- WEAPON (2) ------- Light Cannon Light Cannon > --- INVENTORY (20) --- Light Nuclear Core Light Nuclear Core Flight Unit Flight Unit Flight Unit Medium Storage Unit Compact Matter Pod (150) Transport Network Coupler ECM Suite Hacking Suite Hacking Suite Light Assault Rifle Light Assault Rifle Mining Laser Peak State ------------ > --- POWER ------------ Light Ion Engine > --- PROPULSION ------- Light Treads Light Treads > --- UTILITY ---------- High-capacity Storage Unit Improved Terrain Scanner > --- WEAPON ----------- Light Assault Rifle Light Cannon > --- INVENTORY -------- Light Ion Engine Light Nuclear Core Light Treads Flight Unit Flight Unit Small Storage Unit Medium Storage Unit Transport Network Coupler ECM Suite Hacking Suite Hacking Suite Light Cannon Light Cannon Mining Laser [Rating: 11] Favorites ----------- Power Light Ion Engine Engine Light Ion Engine Propulsion Light Treads Treads Light Treads Utility Improved Terrain Scanner Device Improved Terrain Scanner Storage High-capacity Storage Unit Weapon Light Assault Rifle Ballistic Gun Light Assault Rifle Ballistic Cannon Light Cannon Build | -11 -10 -10 -10 ------- Run | Yrd Mat Min Sub Slots Evolved . | . . . . Power . | . . . . Propulsion . | . . . . Utility . | . . . . Weapon . | . . . . Parts Attached 24 | 7 12 3 2 Power 4 | 1 2 1 . Engine 4 | 1 2 1 . Core . | . . . . Reactor . | . . . . Propulsion 10 | 2 7 1 . Treads 10 | 2 7 1 . Leg . | . . . . Wheel . | . . . . Hover . | . . . . Flight . | . . . . Utility 3 | 2 1 . . Device 1 | 1 . . . Storage 2 | 1 1 . . Processor . | . . . . Hackware . | . . . . Protection . | . . . . Artifact . | . . . . Weapon 7 | 2 2 1 2 Energy Gun . | . . . . Energy Cannon . | . . . . Ballistic Gun 3 | 2 . 1 . Ballistic Cannon 4 | . 2 . 2 Launcher . | . . . . Special Weapon . | . . . . Impact Weapon . | . . . . Slashing Weapon . | . . . . Piercing Weapon . | . . . . Special Melee Weapon . | . . . . Unidentified Prototypes . | . . . . Parts Lost 7 | . 4 1 2 Power 2 | . 2 . . Propulsion 3 | . 1 1 1 Utility . | . . . . Weapon 2 | . 1 . 1 Highest Loss Streak 3 | . 3 1 2 To Critical Strikes . | . . . . Average Slot Usage (%) 95 | . 98 91 97 Engine 13 | . 12 14 14 Treads 24 | . 27 20 25 Device 14 | . 14 14 14 Storage 14 | . 14 14 14 Ballistic Gun 17 | . 19 14 5 Ballistic Cannon 10 | . 8 14 22 Naked Turns . | . . . . Heaviest Build 50 | 11 48 48 50 Greatest Support 40 | 40 40 40 40 Greatest Overweight (x) 2 | . 2 2 1 Average Overweight (x) . | . . 1 1 Largest Inventory Capacity 20 | 8 20 20 20 Average Capacity 17 | 7 17 20 20 Most Carried 16 | 2 14 16 15 Average Carried 10 | . 9 15 14 Final Capacity 20 | 8 20 20 20 Final Carried 15 | 2 13 15 14 Class Distribution -------------------- 92% | Mutant 7% | Scavenger-Mutant Dominant Class ---------------- Mutant | -10/Materials Mutant | -10/Mines Mutant | -10/Subcaves Resources | -11 -10 -10 -10 ----------- Run | Yrd Mat Min Sub Matter Collected 949 | 304 478 167 . Remotely . | . . . . Salvage Created 1180 | 157 724 277 22 Parts 102 | 14 63 23 2 Haulers Intercepted 2 | . 2 . . Recyclers Shooed 3 | . 3 . . Parts Field Recycled . | . . . . Retrieved Matter . | . . . . Parts Self-Destructed . | . . . . Prevented . | . . . . Kills | -11 -10 -10 -10 ------- Run | Yrd Mat Min Sub Combat Hostiles Destroyed 33 | . 18 14 1 Guns 20 | . 13 7 . Cannons 13 | . 5 7 1 Classes Destroyed 9 | 2 6 . 1 Builder 1 | . 1 . . Tunneler 5 | 5 . . . Hauler 2 | . 2 . . Recycler 2 | 1 . 1 . Operator 2 | . 2 . . Watcher 3 | . 3 . . Swarmer 18 | . 6 12 . Grunt 14 | . 12 2 . Subdweller 1 | . . . 1 Best Kill Streak 5 | 1 5 4 1 Combat Bots Only 5 | . 5 3 1 Max Kills in Single Turn 1 | 1 1 1 1 Gunslinging . | . . . . Exploded . | . . . . Melee . | . . . . Uniques/NPCs Destroyed . | . . . . Combat | -11 -10 -10 -10 -------- Run | Yrd Mat Min Sub Hostile Shots Fired 197 | . 123 60 14 Missed 37 | . 28 6 3 Damage Taken 1621 | . 941 454 226 Core 251 | . 134 56 61 Absorbed by Shields . | . . . . Regen/Repaired (Parts) 242 | . 242 . . Core Remaining (%) 100 | 100 . . . Volleys Fired 202 | 30 136 29 7 Largest 2 | 2 2 2 2 Hottest 70 | 40 55 55 70 Shots Fired 392 | 60 262 56 14 Gun 319 | 60 230 29 . Cannon 73 | . 32 27 14 Launcher . | . . . . Special . | . . . . Kinetic 392 | 60 262 56 14 Thermal . | . . . . Explosive . | . . . . Electromagnetic . | . . . . Robot Hit Streak 13 | 5 13 7 12 Robot Miss Streak 6 | 3 6 3 1 Penetration Max . | . . . . Secondary Targets 3 | . 3 . . Max Gunslinging Chain 1 | . 1 . . Shots Hit Robots 232 | 37 150 33 12 Core Hits 80 | 12 50 16 2 Critical Kills 1 | . . 1 . Critical Parts Destroyed 3 | . 2 1 . Critical Strikes 8 | . 2 4 2 Destroy 4 | . 2 2 . Blast 4 | . . 2 2 Melee Attacks . | . . . . Impact . | . . . . Slashing . | . . . . Piercing . | . . . . Sneak Attacks . | . . . . Combat Hostiles . | . . . . Follow-up Attacks . | . . . . Damage Inflicted 2293 | 308 1402 402 181 Guns 1570 | 308 1104 158 . Cannons 718 | . 293 244 181 Explosions . | . . . . Melee . | . . . . Ramming 5 | . 5 . . Kinetic 2288 | 308 1397 402 181 Thermal . | . . . . Explosive . | . . . . Electromagnetic . | . . . . Impact . | . . . . Slashing . | . . . . Piercing . | . . . . Highest Corruption . | . . . . Average Corruption . | . . . . Corruption Purged . | . . . . Corruption Blocked . | . . . . Overload Shots . | . . . . Overflow Damage . | . . . . Projectiles . | . . . . Explosions . | . . . . Melee . | . . . . Knockbacks 11 | . 5 3 3 Impact . | . . . . Kinetic 11 | . 5 3 3 Secondary . | . . . . Self-Inflicted Damage . | . . . . Shots . | . . . . Rammed 3 | . 3 . . Targets Rammed 3 | . 3 . . Kicked . | . . . . Crushed . | . . . . Highest Temperature 72 | . 72 44 . Average Temperature 17 | . 19 14 . Received Heat Transfer 429 | . 366 57 6 Siege Activations . | . . . . Robots Corrupted . | . . . . Combat Hostiles . | . . . . Parts Fried . | . . . . Impact Corruptions . | . . . . Robots Melted . | . . . . Combat Hostiles . | . . . . Parts Melted . | . . . . Heat Transferred . | . . . . Parts Sabotaged . | . . . . Parts Stolen . | . . . . Parts Stripped . | . . . . Power Chain Reactions . | . . . . Alert | -11 -10 -10 -10 ------- Run | Yrd Mat Min Sub Peak Influence 222 | 30 208 222 . Initial 19 | . 19 7 . Average 61 | 11 81 39 . Maximum Alert Level 1 | . 1 1 . Low Security (%) 98 | 100 97 97 . Level 1 1 | . 2 2 . Level 2 . | . . . . Level 3 . | . . . . Level 4 . | . . . . Level 5 . | . . . . High Security . | . . . . Max Security . | . . . . Squads Dispatched 4 | . 4 . . Investigation 2 | . 2 . . Extermination . | . . . . Reinforcement 2 | . 2 . . Assault . | . . . . Garrison . | . . . . Intercept . | . . . . Searches Triggered . | . . . . Construction Impeded . | . . . . Haulers Reinforced . | . . . . Active Scanning Responses . | . . . . Cargo Convoy Interrupts . | . . . . Stealth | -11 -10 -10 -10 --------- Run | Yrd Mat Min Sub Distress Signals 1 | . 1 . . Communications Jammed . | . . . . Distress Signals . | . . . . Times Spotted 57 | . 41 13 3 Peak Tracking Total 5 | . 5 3 2 Tactical Retreats 2 | . 2 . . Traps | -11 -10 -10 -10 ------- Run | Yrd Mat Min Sub Traps Triggered 2 | . 2 . . Indirectly . | . . . . Trap Hack Attempts . | . . . . Triggered . | . . . . Disarmed . | . . . . Reprogrammed . | . . . . Reused . | . . . . Traps Extracted . | . . . . Installed . | . . . . Triggered . | . . . . Machines | -11 -10 -10 -10 ---------- Run | Yrd Mat Min Sub Machines Disabled 2 | . 2 . . Max in Single Turn 1 | . 1 . . Machines Repaired . | . . . . Machines Dismantled . | . . . . Machines Sabotaged . | . . . . Overloaded Fab Kills . | . . . . Hacking | -11 -10 -10 -10 --------- Run | Yrd Mat Min Sub Machines Accessed 9 | . 9 . . Terminals 7 | . 7 . . Fabricators . | . . . . Repair Stations 1 | . 1 . . Recycling Units 1 | . 1 . . Scanalyzers . | . . . . Garrison Access . | . . . . Total Hacks 24 | . 24 . . Successful 11 | . 11 . . Failed 13 | . 13 . . Catastrophic 1 | . 1 . . Database Lockouts . | . . . . Manual 9 | . 9 . . Terminals 17 | . 17 . . Fabricators . | . . . . Repair Stations 6 | . 6 . . Recycling Units 1 | . 1 . . Scanalyzers . | . . . . Garrison Access . | . . . . Terminal Hacks 6 | . 6 . . Part Schematic 1 | . 1 . . Prototype ID Bank 2 | . 2 . . Terminal Index 1 | . 1 . . Alert Level 1 | . 1 . . Recall Investigation 1 | . 1 . . Fabricator Hacks . | . . . . Repair Station Hacks 4 | . 4 . . Scan Component 2 | . 2 . . Repair 2 | . 2 . . Recycling Unit Hacks 1 | . 1 . . Report Inventory 1 | . 1 . . Scanalyzer . | . . . . Garrison Access Hacks . | . . . . Unauthorized Hacks . | . . . . Terminals . | . . . . Fabricators . | . . . . Repair Stations . | . . . . Recycling Units . | . . . . Scanalyzers . | . . . . Garrison Access . | . . . . Data Cores Recovered . | . . . . Used . | . . . . Hacking Detections 8 | . 8 . . Full Trace Events 3 | . 3 . . Feedback Events . | . . . . Feedback Blocked . | . . . . Robot Schematics Acquired . | . . . . Robots Built . | . . . . Authchips . | . . . . Time . | . . . . Total Robot Build Rating . | . . . . Part Schematics Acquired 1 | . 1 . . Parts Built . | . . . . Authchips . | . . . . Time . | . . . . Total Part Build Rating . | . . . . Parts Repaired 2 | . 2 . . Time 52 | . 52 . . Parts Recycled . | . . . . Recycled Matter . | . . . . Retrieved Matter . | . . . . Retrieved Components . | . . . . Parts Scanalyzed . | . . . . Part Schematics Acquired . | . . . . Parts Damaged . | . . . . Bothacking | -11 -10 -10 -10 ------------ Run | Yrd Mat Min Sub Used RIF Installer . | . . . . Robots Hacked . | . . . . Non-combat . | . . . . Combat . | . . . . Robot Hacks Applied . | . . . . Relay Couplers Released . | . . . . Fabnet Peak Effective % . | . . . . Robots Rewired . | . . . . Allies Hacked . | . . . . Hacks Repelled . | . . . . Allies | -11 -10 -10 -10 -------- Run | Yrd Mat Min Sub Total Allies . | . . . . Largest Group . | . . . . Highest-Rated Group . | . . . . Highest-Rated Ally . | . . . . Total Orders . | . . . . Ally Attacks . | . . . . Total Damage . | . . . . Kills . | . . . . Allies Corrupted . | . . . . Allies Melted . | . . . . Intel | -11 -10 -10 -10 ------- Run | Yrd Mat Min Sub Robot Analysis Total . | . . . . Derelict Logs Recovered 2 | . . 2 . Drone Launches . | . . . . Drone Recoveries . | . . . . Exploration | -11 -10 -10 -10 ------------- Run | Yrd Mat Min Sub Turns Passed 4898 | 362 2767 1718 51 Spaces Moved 1777 | 174 1018 580 5 Core 6 | 5 1 . . Treads 1771 | 169 1017 580 5 Legs . | . . . . Wheels . | . . . . Hover . | . . . . Flight . | . . . . Fastest Speed 50 | 50 150 240 240 Average Speed 233 | 156 220 278 240 Slowest Speed 320 | 160 240 320 240 Overloaded Moves . | . . . . Propulsion Burnouts . | . . . . Robots Hopped . | . . . . Cave-ins Triggered . | . . . . Exploration Rate (%) 50 | 10 92 97 2 Regions Visited 3 Branch Regions 2 Pre-discovered Areas 1 | . . 1 . Known Exits Taken . | . . . . Unknown Exits Taken 3 | 1 1 1 . Scrap Searched 1 | . . 1 . Spaces Dug . | . . . . Terrain Destroyed . | . . . . Melee . | . . . . Projectile . | . . . . AOE . | . . . . Terrain Rammed . | . . . . Walls Destroyed . | . . . . Machines Disabled . | . . . . Actions | -11 -10 -10 -10 --------- Run | Yrd Mat Min Sub Total 2190 | 212 1317 631 30 Wait 166 | . 135 15 16 Move 1774 | 173 1017 579 5 Hop . | . . . . Pick Up 17 | 2 12 3 . Fast Attach 12 | 7 5 . . Attach 5 | . 3 1 1 Detach . | . . . . Swap 7 | . 4 2 1 Drop 4 | . 2 2 . Fire 202 | 30 136 29 7 Melee . | . . . . Ram . | . . . . Kick . | . . . . Crush 3 | . 3 . . Escape Stasis . | . . . . Rewire . | . . . . Trap . | . . . . Miscellaneous . | . . . . Route ------- -11/Scrapyard -10/Materials (discovered 4 exits: [*Mat x3] / [*Min]) -10/Mines (discovered 3 exits: [*Mat x2] / [*Sub]) -10/Subcaves (discovered 1 exit: [*Mat]) History --------- Turn | Location | Event 15 | -11/Scrapyard | Discovered new exit (range 15) 363 | -11/Scrapyard | Entered Materials 364 | -10/Materials | Build established: Mutant 692 | -10/Materials | Discovered new exit (range 14) 823 | -10/Materials | Discovered new exit (range 16) 1419 | -10/Materials | Lost 3 parts (1p1n1w) 1877 | -10/Materials | Core integrity fell below 50% 1982 | -10/Materials | Discovered new exit (range 14) 2103 | -10/Materials | Discovered new exit (range 12) 2252 | -10/Materials | Repaired Lgt. Treads 2279 | -10/Materials | Repaired Lgt. Treads 3130 | -10/Materials | Entered Mines 3244 | -10/Mines | Learned Materials security intel 3511 | -10/Mines | Discovered new exit (range 6) 3600 | -10/Mines | Learned Materials emergency access door positions 3733 | -10/Mines | Build established: Scavenger-Mutant 3771 | -10/Mines | Learned location of Storage (-7) 3807 | -10/Mines | Discovered new exit (range 10) 4087 | -10/Mines | Build established: Mutant 4809 | -10/Mines | Discovered new exit (range 6) 4848 | -10/Mines | Entered Subcaves 4853 | -10/Subcaves | Ambushed by Subdwellers from Twisted Machinery 4853 | -10/Subcaves | Discovered new exit (range 14) 4883 | -10/Subcaves | Core integrity fell below 20% 4899 | -10/Subcaves | Destroyed by 3G-FVK(R) with Subdweller Machine Gun Last Messages --------------- 03810_ Acquired 1 matter. 04008_ K-01 Serf cleans the Laser Drill. 04488_ Acquired Com. Matter Pod. 04733_ Acquired 9 matter. 04740_ Acquired 1 matter. 04809_ EXIT=FOUND LOCATION=UNKNOWN AMBIENT_HEAT=-10 GOAL=ESCAPE 04853_ T0-NEE(R) emerges from the Twisted Machinery. 04853_ EXIT=FOUND 3G-FVK(R) emerges from concealment. 04881_ Lgt. Cannon destroyed. 04882_ T0-NEE(R) suffers critical hit (Blast). 04882_ T0-NEE(R) destroyed. 04885_ Lgt. Treads destroyed. 04885_ 3G-FVK(R) knocked back. 04889_ 3G-FVK(R) affixes Scrap Shield Fragment to Scrap Shield. 04894_ 3G-FVK(R) Sub. Power Source blasted off. 04897_ 3G-FVK(R) knocked back. Map ----- +----------------------------------------------------+ | ?????????????????????????????????????????????????? | | ?????????????????????????????????????????????????? | | ?????????????????????????????????????????????????? | | ?????????????????????????????????????????????????? | | ?????????????????????????????????????????????????? | | ?????????????????????????????????????????????????? | | ?????????????????????????????????????????????????? | | ?????????????????????????????????????????????????? | | ?????????????????????????????????????????????????? | | ?????????????????????????????????????????????????? | | ?????????????????????????????????????????????????? | | ??????????????????#??????????????????????????????? | | ?????????????????????????????????????????????????? | | ?????????????????????????????????????????????????? | | ????????????????????????????????????? ???????????? | | ????????????????#???#????#????##???? ??????????? | | ?????????????????????????????# #### ????????????? | | ????????????????????????????# ???#?????????? | | ???????????????????????????? ? #?????????? | | ?????????????" ????????????? ## ??????????? | | ?????????????? ??##???????# ????????????? | | ??????????????#" #?# ????## ????"?????????? | | ???????????"""""" # ???# #???#????????????? | | ????????????< #### #??##?????????????? | | ??????????????""" #*# #?????"?"??????????? | | ???????????#???????# %%&@ #????????#?????????? | | ?????????????"?????# %!R% ##???"?????????????? | | ???????????????#???# #% #?????????????????? | | ???????????????????# ?## #?????????????????? | | ???????????????????# ???## #####?????????????????? | | ??????????????????# ?????###??????"??????????????? | | ???????????#?????# ??????????????????????????????? | | ???????????????????????????#??????????? ?????????? | | ??????????????#????????? ????????????????????????? | | ???????????????????????????#???? ????????????????? | | ?????????????????????????????????????????????????? | | ???????????????????????#????#????????????????????? | | ?????????????????????????????????"???????????????? | | ???????????????????????????? ????????????????????? | | ?????????????????????????????????????????????????? | | ?????????????????????????????????????????????????? | | ?????????????????????????????????????????????????? | | ?????????????????????????????????????????????????? | | ?????????????????????????????????????????????????? | | ?????????????????????????????????????????????????? | | ?????????????????????????????????????????????????? | | ?????????????????????????????????????????????????? | | ?????????????????????????????????????????????????? | | ?????????????????????????????????????????????????? | | ?????????????????????????????????????????????????? | +----------------------------------------------------+ Best States ------------- Heat Dissipation 25 Energy Generation 10 Energy Capacity 125 Matter Stores 300 Matter Capacity 300 Sight Range 16 Terrain Scan Range 16 Terrain Scan Density 10 Evasion (%) 40 Recoil Reduction 2 Item Schematics ----------------- Utility Shielding | -10/Materials | Hacked Robot Schematics ------------------ None Fabricated ------------ Nothing Alien Tech Used ----------------- None Achievements -------------- None Challenges ------------ None Game ------ Seed asdwasd Manual? 1 Play Time 00:21:03 Cumulative 24.4 hours Start 2024.04.04 @ 18:54:24 End 2024.04.04 @ 19:32:50 Sessions 1 Manual Loads 0 Difficulty Rogue Special Mode None Game No. 17 Rogue 17 Adventurer 0 Explorer 0 Win Type - Total 0 Types 0/0/0/0/0/0/0/0/0 Lore% 17 Gallery% 21 Achievement% 19 Wizard Run 0 Options --------- Layout 0 ASCII 0 Keyboard 1 Movement Numpad Keybinds 0 Fullscreen 2 Font 24/Smallcaps Map View 76x56 Zoom Use 0% Tactical HUD 1 Map Filters NONE Filters NONE Steam 1 RUN: fb3ba249-76a3-42a8-ac0a-4c7a69750fe2